fUST/lending_fUST_20251004
["ID","MTS","AMOUNT","RATE_DAILY","PERIOD"]
[388995196,1759559457334,-2372.55,0.00022191,3]
[388995198,1759559457345,-500.0,0.00022191,3]
[388995200,1759559457356,-500.0,0.00022191,3]
[388995202,1759559457367,-3089.01,0.00022191,3]
[388995204,1759559457378,-859.55,0.00022191,3]
[388995206,1759559457389,-500.0,0.00022191,3]
[388995208,1759559457400,-1537.59,0.00022191,3]
[388995210,1759559457411,-164.94558936,0.00022191,3]
[388995212,1759559457427,-640.36411669,0.00022191,3]
[388995214,1759559457439,-500.0,0.00022191,3]
[388995217,1759559457450,-500.0,0.00022191,3]
[388995219,1759559457461,-500.0,0.00022191,3]
[388995221,1759559457472,-1118.86,0.00022191,3]
[388995223,1759559457483,-1205.01,0.00022191,3]
[388995225,1759559457494,-1143.85,0.00022191,3]
[388995227,1759559457505,-500.0,0.00022191,3]
[388995229,1759559457516,-2231.02,0.00022191,3]
[388995231,1759559457527,-277.75955259,0.00022191,3]
[388995233,1759559457538,-500.0,0.00022191,3]
[388995235,1759559457549,-500.0,0.00022191,3]
[388995238,1759559457560,-914.56,0.00022191,3]
[388995240,1759559457571,-500.0,0.00022191,3]
[388995242,1759559457584,-1505.27,0.00022191,3]
[388995244,1759559457595,-500.0,0.00022191,3]
[388995246,1759559457606,-1361.21,0.00022191,3]
[388995248,1759559457617,-500.0,0.00022191,3]
[388995250,1759559457628,-500.0,0.00022191,3]
[388995253,1759559457639,-373.60910581,0.00022191,3]
[388995255,1759559457651,-1199.57,0.00022191,3]
[388995257,1759559457662,-500.0,0.00022191,3]
[388995259,1759559457672,-891.68,0.00022191,3]
[388995261,1759559457683,-527.49,0.00022191,3]
[388995263,1759559457695,-500.0,0.00022191,3]
[388995266,1759559457706,-454.14369505,0.00022191,3]
[388995268,1759559457717,-500.0,0.00022191,3]
[388995270,1759559457727,-500.0,0.00022191,3]
[388995272,1759559457739,-500.0,0.00022191,3]
[388995274,1759559457750,-510.01,0.00022191,3]
[388995276,1759559457761,-5002.36,0.00022191,3]
[388995278,1759559457772,-500.0,0.00022191,3]
[388995280,1759559457783,-542.11,0.00022191,3]
[388995283,1759559457795,-1303.3,0.00022191,3]
[388995285,1759559457806,-500.0,0.00022191,3]
[388995287,1759559457816,-500.0,0.00022191,3]
[388995289,1759559457827,-500.0,0.00022191,3]
[388995291,1759559457839,-530.76,0.00022191,3]
[388995293,1759559457850,-465.92726004,0.00022191,3]
[388995296,1759559457861,-2334.25,0.00022191,3]
[388995298,1759559457872,-500.0,0.00022191,3]
[388995300,1759559457883,-1153.96,0.00022191,3]
[388995302,1759559457894,-1029.7,0.00022191,3]
[388995304,1759559457905,-917.88,0.00022191,3]
[388995306,1759559457917,-500.0,0.00022191,3]
[388995309,1759559457928,-500.0,0.00022191,3]
[388995311,1759559457939,-500.0,0.00022191,3]
[388995313,1759559457950,-424.4579044,0.00022191,3]
[388995315,1759559457961,-389.46762912,0.00022191,3]
[388995317,1759559457972,-500.0,0.00022191,3]
[388995320,1759559457984,-500.0,0.00022191,3]
[388995322,1759559457996,-500.0,0.00022191,3]
[388995324,1759559458008,-500.0,0.00022191,3]
[388995326,1759559458018,-500.0,0.00022191,3]
[388995328,1759559458027,-1273.55,0.00022191,3]
[388995330,1759559458037,-500.0,0.00022191,3]
[388995332,1759559458046,-1537.37,0.00022191,3]
[388995334,1759559458055,-500.0,0.00022191,3]
[388995336,1759559458065,-500.0,0.00022191,3]
[388995338,1759559458074,-500.0,0.00022191,3]
[388995340,1759559458083,-797.21,0.00022191,3]
[388995342,1759559458094,-500.0,0.00022191,3]
[388995344,1759559458110,-500.0,0.00022191,3]
[388995346,1759559458119,-500.0,0.00022191,3]
[388995348,1759559458128,-2166.99,0.00022191,3]
[388995350,1759559458138,-3681.69,0.00022191,3]
[388995352,1759559458147,-7137.76,0.00022191,3]
[388995354,1759559458156,-697.45,0.00022191,3]
[388995356,1759559458165,-500.0,0.00022191,3]
[388995358,1759559458174,-500.0,0.00022191,3]
[388995360,1759559458183,-1050.44,0.00022191,3]
[388995362,1759559458194,-500.0,0.00022191,3]
[388995364,1759559458203,-500.0,0.00022191,3]
[388995366,1759559458213,-502.77251332,0.00022191,3]
[388995368,1759559458222,-500.0,0.00022191,3]
[388995370,1759559458231,-626.96,0.00022191,3]
[388995372,1759559458240,-691.53,0.00022191,3]
[388995374,1759559458249,-627.62526103,0.00022191,2]
[388995375,1759559458259,-423.01133758,0.00022191,3]
[388995376,1759559458268,-500.0,0.00022191,3]
[388995377,1759559458277,-1233.93,0.00022191,3]
[388995378,1759559458286,-1324.47,0.00022191,3]
[388995379,1759559458296,-4155.67,0.00022191,3]
[388995380,1759559458305,-500.0,0.00022191,3]
[388995381,1759559458315,-500.0,0.00022191,3]
[388995382,1759559458323,-1000.99,0.00022191,3]
[388995383,1759559458332,-500.0,0.00022191,3]
[388995384,1759559458341,-500.0,0.00022191,3]
[388995385,1759559458350,-500.0,0.00022191,3]
[388995386,1759559458359,-500.0,0.00022191,3]
[388995387,1759559458367,-500.0,0.00022191,3]
[388995388,1759559458376,-768.55,0.00022191,3]
[388995389,1759559458385,-500.0,0.00022191,3]
[388995390,1759559458394,-607.21,0.00022191,3]
[388995391,1759559458403,-5601.19,0.00022191,3]
[388995392,1759559458412,-1857.26,0.00022191,3]
[388995393,1759559458425,-1000.0,0.00022191,2]
[388995409,1759559458782,-904.47,0.00022191,3]
[388995412,1759559458797,-500.3121624,0.00022191,3]
[388995414,1759559458809,-500.0,0.00022191,3]
[388995416,1759559458818,-1399.78,0.00022191,3]
[388995418,1759559458827,-1595.21,0.00022191,3]
[388995420,1759559458837,-1419.4,0.00022191,3]
[388995422,1759559458846,-500.0,0.00022191,3]
[388995424,1759559458855,-359.27437895,0.00022191,3]
[388995426,1759559458866,-500.0,0.00022191,3]
[388995428,1759559458875,-500.0,0.00022191,3]
[388995430,1759559458886,-312.17345558,0.00022191,3]
[388995432,1759559458896,-643.92,0.00022191,3]
[388995434,1759559458908,-1125.4,0.00022191,3]
[388995436,1759559458918,-500.0,0.00022191,3]
[388995438,1759559458927,-500.0,0.00022191,3]
[388995440,1759559458937,-500.0,0.00022191,3]
[388995442,1759559458947,-2009.96,0.00022191,3]
[388995444,1759559458957,-500.0,0.00022191,3]
[388995446,1759559458966,-500.0,0.00022191,2]
[388995448,1759559458976,-4189.66,0.00022191,3]
[388995450,1759559458985,-500.0,0.00022191,3]
[388995452,1759559458995,-3174.13,0.00022191,3]
[388995454,1759559459004,-500.0,0.00022191,3]
[388995456,1759559459013,-500.0,0.00022191,3]
[388995458,1759559459022,-151.0,0.000222,6]
[388995460,1759559459031,-151.0,0.000222,10]
[388995462,1759559459040,-151.0,0.000222,7]
[388995464,1759559459049,-200.0,0.0002224,2]
[388995466,1759559459059,-500.0,0.00022241,3]
[388995468,1759559459068,-500.0,0.00022241,3]
[388995470,1759559459077,-500.0,0.00022241,3]
[388995472,1759559459087,-500.0,0.00022241,3]
[388995474,1759559459096,-473.61221983,0.00022241,3]
[388995476,1759559459106,-500.0,0.00022241,3]
[388995478,1759559459115,-1826.13,0.00022241,3]
[388995480,1759559459125,-1029.71,0.00022241,3]
[388995482,1759559459134,-1337.39,0.00022241,3]
[388995484,1759559459143,-500.0,0.00022241,3]
[388995486,1759559459152,-500.0,0.00022241,3]
[388995488,1759559459161,-500.0,0.00022241,3]
[388995490,1759559459174,-500.0,0.00022241,3]
[388995492,1759559459184,-500.0,0.00022241,3]
[388995494,1759559459193,-500.0,0.00022241,3]
[388995496,1759559459203,-1442.1,0.00022241,3]
[388995498,1759559459213,-500.0,0.00022241,3]
[388995500,1759559459222,-500.0,0.00022241,3]
[388995502,1759559459231,-500.0,0.00022241,3]
[388995504,1759559459240,-590.35,0.00022241,3]
[388995506,1759559459249,-500.0,0.00022241,3]
[388995508,1759559459258,-500.0,0.00022241,3]
[388995510,1759559459267,-706.76,0.00022241,3]
[388995512,1759559459276,-500.0,0.00022241,3]
[388995514,1759559459285,-500.0,0.00022241,3]
[388995516,1759559459294,-500.0,0.00022241,3]
[388995518,1759559459303,-496.42071689,0.00022241,3]
[388995520,1759559459312,-500.0,0.00022241,3]
[388995522,1759559459321,-500.0,0.00022241,3]
[388995524,1759559459330,-500.0,0.00022241,3]
[388995526,1759559459339,-500.0,0.00022241,3]
[388995528,1759559459348,-500.0,0.00022241,3]
[388995530,1759559459357,-500.0,0.00022241,3]
[388995532,1759559459366,-500.0,0.00022241,3]
[388995534,1759559459376,-603.82,0.00022241,3]
[388995535,1759559459384,-500.0,0.00022241,3]
[388995537,1759559459394,-500.0,0.00022241,3]
[388995539,1759559459403,-206.294112,0.00022241,3]
[388995541,1759559459414,-500.0,0.00022241,3]
[388995543,1759559459428,-608.09,0.00022241,3]
[388995545,1759559459438,-500.0,0.00022241,3]
[388995547,1759559459447,-500.0,0.00022241,3]
[388995549,1759559459457,-500.0,0.00022241,3]
[388995551,1759559459466,-1778.49,0.00022241,3]
[388995553,1759559459475,-500.0,0.00022241,3]
[388995556,1759559459485,-500.0,0.00022241,3]
[388995558,1759559459495,-500.0,0.00022241,3]
[388995559,1759559459505,-500.0,0.00022241,3]
[388995561,1759559459515,-500.0,0.00022241,3]
[388995563,1759559459524,-500.0,0.00022241,3]
[388995565,1759559459533,-500.0,0.00022241,3]
[388995567,1759559459542,-500.0,0.00022241,3]
[388995569,1759559459552,-500.0,0.00022241,3]
[388995571,1759559459561,-638.21,0.00022241,3]
[388995573,1759559459573,-500.0,0.00022241,3]
[388995575,1759559459583,-500.0,0.00022241,3]
[388995577,1759559459592,-500.0,0.00022241,3]
[388995579,1759559459600,-724.93,0.00022241,3]
[388995581,1759559459610,-500.0,0.00022241,3]
[388995583,1759559459619,-3420.92,0.00022241,3]
[388995585,1759559459629,-534.61,0.00022241,3]
[388995587,1759559459638,-340.94914182,0.00022241,2]
[388995589,1759559459648,-500.0,0.00022241,3]
[388995591,1759559459658,-500.0,0.00022241,3]
[388995593,1759559459667,-500.0,0.00022241,3]
[388995595,1759559459676,-500.0,0.00022241,3]
[388995597,1759559459685,-500.0,0.00022241,3]
[388995599,1759559459695,-500.0,0.00022241,3]
[388995601,1759559459704,-500.0,0.00022241,3]
[388995603,1759559459713,-500.0,0.00022241,3]
[388995605,1759559459722,-500.0,0.00022241,3]
[388995607,1759559459732,-544.07,0.00022241,3]
[388995609,1759559459740,-690.67,0.00022241,3]
[388995611,1759559459750,-442.22236168,0.00022241,3]
[388995613,1759559459758,-500.0,0.00022241,3]
[388995615,1759559459767,-500.0,0.00022241,3]
[388995617,1759559459776,-1029.79,0.00022241,3]
[388995619,1759559459785,-500.0,0.00022241,3]
[388995621,1759559459795,-500.0,0.00022241,3]
[388995623,1759559459804,-500.0,0.00022241,3]
[388995625,1759559459813,-510.87,0.00022241,3]
[388995627,1759559459825,-500.0,0.00022241,3]
[388995629,1759559459834,-500.0,0.00022241,3]
[388995631,1759559459844,-500.0,0.00022241,3]
[388995633,1759559459853,-858.64,0.00022241,3]
[388995635,1759559459862,-500.0,0.00022241,3]
[388995636,1759559459871,-500.0,0.00022241,3]
[388995638,1759559459880,-960.52,0.00022241,3]
[388995640,1759559459889,-500.0,0.00022241,3]
[388995642,1759559459898,-467.58598247,0.00022241,3]
[388995644,1759559459907,-500.0,0.00022241,3]
[388995646,1759559459916,-500.0,0.00022241,3]
[388995648,1759559459926,-500.0,0.00022241,3]
[388995650,1759559459935,-500.0,0.00022241,3]
[388995652,1759559459944,-500.0,0.00022241,3]
[388995654,1759559459954,-865.02,0.00022241,3]
[388995656,1759559459963,-500.0,0.00022241,3]
[388995658,1759559459972,-921.88,0.00022241,3]
[388995660,1759559459981,-500.0,0.00022241,3]
[388995662,1759559459990,-500.0,0.00022241,3]
[388995664,1759559459999,-500.0,0.00022241,3]
[388995666,1759559460009,-500.0,0.00022241,3]
[388995668,1759559460019,-500.0,0.00022241,3]
[388995670,1759559460029,-500.0,0.00022241,3]
[388995672,1759559460038,-452.56313857,0.00022241,3]
[388995674,1759559460048,-500.0,0.00022241,3]
[388995676,1759559460057,-1011.96,0.00022241,3]
[388995678,1759559460067,-683.66,0.00022241,3]
[388995680,1759559460077,-387.79873228,0.00022241,3]
[388995682,1759559460086,-500.0,0.00022241,3]
[388995684,1759559460096,-500.0,0.00022241,3]
[388995686,1759559460105,-620.05,0.00022241,3]
[388995688,1759559460114,-500.0,0.00022241,3]
[388995690,1759559460124,-500.0,0.00022241,3]
[388995692,1759559460134,-480.863841,0.00022241,3]
[388995694,1759559460143,-500.0,0.00022241,3]
[388995696,1759559460153,-780.73,0.00022241,3]
[388995698,1759559460162,-1029.25,0.00022241,3]
[388995700,1759559460171,-500.0,0.00022241,3]
[388995702,1759559460180,-500.0,0.00022241,3]
[388995704,1759559460190,-500.0,0.00022241,3]
[388995706,1759559460199,-500.0,0.00022241,3]
[388995708,1759559460208,-856.63,0.00022241,3]
[388995710,1759559460217,-500.0,0.00022241,3]
[388995712,1759559460227,-500.0,0.00022241,3]
[388995714,1759559460237,-500.0,0.00022241,3]
[388995716,1759559460247,-2001.23,0.00022241,3]
[388995718,1759559460256,-500.0,0.00022241,3]
[388995720,1759559460267,-500.0,0.00022241,3]
[388995722,1759559460277,-523.1,0.00022241,3]
[388995724,1759559460286,-500.0,0.00022241,3]
[388995726,1759559460295,-500.0,0.00022241,3]
[388995728,1759559460304,-500.0,0.00022241,3]
[388995730,1759559460313,-500.0,0.00022241,3]
[388995732,1759559460323,-500.0,0.00022241,3]
[388995734,1759559460332,-500.0,0.00022241,3]
[388995736,1759559460341,-500.0,0.00022241,3]
[388995738,1759559460350,-532.79,0.00022241,3]
[388995740,1759559460360,-500.0,0.00022241,3]
[388995742,1759559460368,-500.0,0.00022241,3]
[388995744,1759559460378,-561.29,0.00022241,3]
[388995746,1759559460387,-500.0,0.00022241,3]
[388995748,1759559460396,-500.0,0.00022241,3]
[388995750,1759559460405,-449.3390189,0.00022241,3]
[388995752,1759559460415,-500.0,0.00022241,3]
[388995754,1759559460429,-643.52,0.00022241,3]
[388995756,1759559460438,-500.0,0.00022241,3]
[388995758,1759559460447,-969.95,0.00022241,3]
[388995761,1759559460459,-500.0,0.00022241,3]
[388995763,1759559460467,-500.0,0.00022241,3]
[388995764,1759559460476,-500.0,0.00022241,3]
[388995766,1759559460485,-500.0,0.00022241,3]
[388995768,1759559460497,-769.39,0.00022241,3]
[388995770,1759559460507,-500.0,0.00022245,3]
[388995772,1759559460516,-802.21,0.00022245,3]
[388995774,1759559460525,-10976.23,0.00022245,3]
[388995776,1759559460534,-7048.6,0.00022245,3]
[388995778,1759559460543,-3042.75,0.00022245,3]
[388995780,1759559460552,-500.0,0.00022245,3]
[388995782,1759559460562,-760.2,0.00022245,3]
[388995785,1759559460572,-1727.25,0.00022245,3]
[388995786,1759559460581,-500.0,0.00022245,3]
[388995788,1759559460590,-448.44395797,0.00022245,3]
[388995791,1759559460600,-3951.74,0.00022245,3]
[388995793,1759559460610,-739.45,0.00022245,3]
[388995795,1759559460619,-2943.93,0.00022245,3]
[388995797,1759559460628,-500.0,0.00022245,3]
[388995799,1759559460637,-500.0,0.00022245,3]
[388995801,1759559460646,-160.0,0.00022263,7]
[388995802,1759559460655,-502.52900565,0.00022266,3]
[388995804,1759559460664,-161.49123965,0.00022266,3]
[388995807,1759559460674,-151.0,0.00022266,3]
[388995809,1759559460683,-616.0,0.00022266,3]
[388995811,1759559460692,-616.0,0.00022266,3]
[388995812,1759559460702,-151.0,0.00022266,3]
[388995815,1759559460711,-500.0,0.00022266,3]
[388995817,1759559460720,-301.24208232,0.00022266,2]
[388995819,1759559460730,-151.0,0.00022266,2]
[388995820,1759559460739,-151.80431633,0.00022266,2]
[388995822,1759559460748,-151.0,0.00022266,2]
[388995824,1759559460757,-151.73323949,0.00022266,2]
[388995826,1759559460766,-151.0,0.00022266,2]
[388995829,1759559460776,-500.0,0.00022266,2]
[388995830,1759559460785,-151.0,0.00022266,2]
[388995832,1759559460794,-500.0,0.00022266,2]
[388995834,1759559460803,-151.74107027,0.00022266,2]
[388995837,1759559460812,-500.0,0.00022266,2]
[388995839,1759559460822,-151.0,0.00022266,2]
[388995841,1759559460832,-500.0,0.00022266,2]
[388995842,1759559460841,-151.42574894,0.00022266,2]
[388995845,1759559460850,-500.0,0.00022266,2]
[388995847,1759559460860,-151.0,0.00022266,2]
[388995849,1759559460870,-151.0,0.00022266,2]
[388995851,1759559460879,-500.0,0.00022266,2]
[388995853,1759559460888,-500.0,0.00022266,2]
[388995855,1759559460898,-500.0,0.00022272,5]
[388995857,1759559460907,-500.0,0.00022273,2]
[388995859,1759559460916,-500.69150073,0.00022273,2]
[388995861,1759559460925,-500.0,0.00022273,2]
[388995863,1759559460936,-578.61765307,0.00022301,2]
[388995865,1759559460946,-160.0,0.00022381,2]
[388995867,1759559460955,-6364.11959603,0.00022415,2]
[388995869,1759559460966,-500.01,0.00022465,3]
[388995871,1759559460975,-500.01,0.00022465,3]
[388995873,1759559460984,-482.5464354,0.00022465,3]
[388995875,1759559460993,-500.0,0.00022465,3]
[388995877,1759559461003,-500.0,0.00022465,3]
[388995879,1759559461012,-500.0,0.00022465,3]
[388995881,1759559461022,-738.28,0.00022465,3]
[388995883,1759559461031,-500.0,0.00022465,3]
[388995885,1759559461041,-500.0,0.00022465,3]
[388995887,1759559461051,-654.01,0.00022465,3]
[388995889,1759559461059,-500.0,0.00022465,3]
[388995891,1759559461069,-625.39,0.00022465,3]
[388995893,1759559461078,-500.0,0.00022465,3]
[388995895,1759559461087,-500.0,0.00022465,3]
[388995897,1759559461097,-500.0,0.00022465,3]
[388995899,1759559461106,-500.0,0.00022465,3]
[388995901,1759559461115,-500.0,0.00022465,3]
[388995903,1759559461125,-500.0,0.00022465,3]
[388995905,1759559461134,-500.0,0.00022465,3]
[388995907,1759559461143,-500.0,0.00022465,3]
[388995909,1759559461152,-500.0,0.00022465,3]
[388995911,1759559461161,-500.0,0.00022465,3]
[388995913,1759559461171,-530.74,0.00022465,3]
[388995915,1759559461180,-500.0,0.00022465,3]
[388995917,1759559461189,-500.0,0.00022465,3]
[388995919,1759559461199,-500.0,0.00022465,3]
[388995921,1759559461208,-500.0,0.00022465,3]
[388995923,1759559461219,-500.0,0.00022465,3]
[388995925,1759559461228,-843.1,0.00022465,3]
[388995927,1759559461237,-311.15202665,0.00022465,3]
[388995929,1759559461246,-1052.23,0.00022465,3]
[388995931,1759559461255,-500.0,0.00022465,3]
[388995933,1759559461264,-770.78,0.00022465,3]
[388995935,1759559461273,-500.0,0.00022465,3]
[388995937,1759559461282,-453.77562936,0.00022465,3]
[388995939,1759559461292,-412.39158588,0.00022465,3]
[388995941,1759559461301,-500.0,0.00022465,3]
[388995943,1759559461310,-500.0,0.00022465,3]
[388995945,1759559461319,-500.0,0.00022465,3]
[388995947,1759559461329,-565.89,0.00022465,3]
[388995949,1759559461338,-500.0,0.00022465,3]
[388995951,1759559461347,-500.0,0.00022465,3]
[388995953,1759559461356,-500.0,0.00022465,3]
[388995955,1759559461365,-500.0,0.00022465,3]
[388995957,1759559461374,-475.32029713,0.00022465,3]
[388995959,1759559461383,-500.0,0.00022465,3]
[388995961,1759559461393,-890.91,0.00022465,3]
[388995963,1759559461402,-800.58,0.00022465,3]
[388995965,1759559461411,-500.0,0.00022465,3]
[388995967,1759559461423,-500.0,0.00022465,3]
[388995969,1759559461433,-197.25047142,0.00022465,3]
[388995971,1759559461442,-826.45,0.00022465,3]
[388995973,1759559461451,-500.0,0.00022465,3]
[388995975,1759559461460,-584.41,0.00022465,3]
[388995977,1759559461470,-500.0,0.00022465,3]
[388995979,1759559461479,-500.0,0.00022465,3]
[388995981,1759559461490,-500.0,0.00022465,3]
[388995983,1759559461499,-500.0,0.00022465,3]
[388995985,1759559461509,-500.0,0.00022465,3]
[388995987,1759559461519,-500.0,0.00022465,3]
[388995989,1759559461528,-500.0,0.00022465,3]
[388995991,1759559461537,-500.0,0.00022465,3]
[388995993,1759559461547,-629.19,0.00022465,3]
[388995995,1759559461556,-500.0,0.00022465,3]
[388995997,1759559461566,-955.9,0.00022465,3]
[388995999,1759559461578,-500.0,0.00022465,3]
[388996001,1759559461587,-500.0,0.00022465,3]
[388996003,1759559461597,-500.0,0.00022465,3]
[388996005,1759559461606,-500.0,0.00022465,3]
[388996007,1759559461615,-500.0,0.00022465,3]
[388996009,1759559461625,-500.0,0.00022465,3]
[388996011,1759559461634,-500.0,0.00022465,3]
[388996013,1759559461643,-500.0,0.00022465,3]
[388996015,1759559461653,-500.0,0.00022465,3]
[388996017,1759559461662,-1168.73,0.00022465,3]
[388996019,1759559461671,-500.0,0.00022465,3]
[388996021,1759559461680,-1516.35,0.00022465,3]
[388996023,1759559461690,-500.0,0.00022465,3]
[388996025,1759559461699,-1148.66,0.00022465,3]
[388996027,1759559461708,-500.0,0.00022465,3]
[388996029,1759559461718,-522.51,0.00022465,3]
[388996031,1759559461727,-751.7,0.00022465,3]
[388996032,1759559461736,-500.0,0.00022465,3]
[388996034,1759559461745,-1107.66,0.00022465,3]
[388996036,1759559461755,-528.43,0.00022465,3]
[388996037,1759559461764,-500.0,0.00022465,3]
[388996039,1759559461774,-414.72486062,0.00022465,3]
[388996041,1759559461783,-500.0,0.00022465,3]
[388996043,1759559461793,-500.0,0.00022465,3]
[388996057,1759559461958,-500.0,0.00022465,3]
[388996058,1759559461969,-500.0,0.00022465,3]
[388996060,1759559461979,-500.0,0.00022465,3]
[388996062,1759559461988,-533.02,0.00022465,3]
[388996063,1759559461998,-3381.77,0.00022465,3]
[388996065,1759559462008,-500.0,0.00022465,3]
[388996067,1759559462018,-500.0,0.00022465,3]
[388996069,1759559462027,-1947.71,0.00022465,3]
[388996071,1759559462037,-500.0,0.00022465,3]
[388996072,1759559462047,-1823.57,0.00022465,3]
[388996074,1759559462057,-500.0,0.00022465,3]
[388996076,1759559462066,-1726.74,0.00022465,3]
[388996078,1759559462078,-500.0,0.00022465,3]
[388996080,1759559462087,-500.0,0.00022465,3]
[388996081,1759559462096,-859.28,0.00022465,3]
[388996083,1759559462106,-500.0,0.00022465,3]
[388996085,1759559462115,-1112.02,0.00022465,3]
[388996087,1759559462126,-500.0,0.00022465,3]
[388996088,1759559462136,-500.0,0.00022465,3]
[388996090,1759559462146,-500.0,0.00022465,3]
[388996092,1759559462155,-500.0,0.00022465,3]
[388996094,1759559462165,-500.0,0.00022465,3]
[388996096,1759559462175,-670.06,0.00022465,3]
[388996098,1759559462184,-500.0,0.00022465,2]
[388996099,1759559462196,-500.0,0.00022465,3]
[388996101,1759559462206,-508.73,0.00022465,3]
[388996103,1759559462215,-307.27970405,0.00022465,3]
[388996105,1759559462225,-504.96299971,0.00022465,3]
[388996107,1759559462235,-500.0,0.00022465,3]
[388996109,1759559462246,-500.0,0.00022465,3]
[388996111,1759559462256,-500.0,0.00022465,3]
[388996112,1759559462266,-500.0,0.00022465,3]
[388996114,1759559462275,-896.85,0.00022465,3]
[388996116,1759559462284,-3061.99,0.00022465,3]
[388996118,1759559462294,-514.04,0.00022465,3]
[388996120,1759559462303,-1206.38,0.00022465,3]
[388996121,1759559462313,-500.0,0.00022465,3]
[388996123,1759559462325,-500.0,0.00022465,3]
[388996125,1759559462335,-976.29,0.00022465,3]
[388996127,1759559462345,-500.0,0.00022465,3]
[388996128,1759559462354,-500.0,0.00022465,3]
[388996130,1759559462363,-721.88,0.00022465,3]
[388996132,1759559462372,-646.31,0.00022465,3]
[388996134,1759559462381,-500.0,0.00022465,3]
[388996136,1759559462390,-500.0,0.00022465,3]
[388996137,1759559462400,-848.15,0.00022465,3]
[388996139,1759559462409,-722.27,0.00022465,3]
[388996141,1759559462420,-500.0,0.00022465,3]
[388996143,1759559462430,-500.0,0.00022465,3]
[388996144,1759559462439,-500.0,0.00022465,3]
[388996146,1759559462450,-500.0,0.00022465,3]
[388996148,1759559462460,-500.0,0.00022465,3]
[388996150,1759559462470,-500.0,0.00022465,3]
[388996152,1759559462481,-2148.27,0.00022465,3]
[388996154,1759559462490,-1593.1,0.00022465,3]
[388996156,1759559462501,-1095.21,0.00022465,3]
[388996157,1759559462511,-500.0,0.00022465,3]
[388996159,1759559462520,-500.0,0.00022465,3]
[388996161,1759559462529,-500.0,0.00022465,3]
[388996163,1759559462539,-500.0,0.00022465,3]
[388996165,1759559462548,-500.0,0.00022465,3]
[388996167,1759559462558,-1073.33,0.00022465,3]
[388996168,1759559462567,-5853.8,0.00022465,3]
[388996170,1759559462579,-500.0,0.00022465,3]
[388996172,1759559462590,-1120.96,0.00022465,3]
[388996173,1759559462610,-1656.76,0.00022465,3]
[388996175,1759559462620,-500.0,0.00022465,3]
[388996177,1759559462630,-1596.33,0.00022465,3]
[388996179,1759559462639,-500.0,0.00022465,3]
[388996181,1759559462648,-1140.47,0.00022465,3]
[388996182,1759559462657,-500.0,0.00022465,3]
[388996184,1759559462667,-500.0,0.00022465,3]
[388996186,1759559462676,-500.0,0.00022465,3]
[388996187,1759559462687,-59.23490662,0.00022465,3]
[389003295,1759560412829,2144.87,0.00028767,120]
[389003304,1759560606065,165.0,0.000287,120]